[Event "Titled Tuesday Blitz August 08 Early 2023"]
[White "Godzwon, Iwo"]
[Black "Perrine, Dalton"]
[WhiteFideId "21802483"]
[BlackFideId "2048434"]
[WhiteElo "2677"]
[BlackElo "2515"]
[Result "1-0"]
[Round "4"]
[TimeControl "180+1"]
[Date "2023.08.08"]
[WhiteClock "0:01:18"]
[BlackClock "0:00:03"]
[Board "93"]

1. e4 {[%clk 0:02:51]}  c5 {[%clk 0:02:59]} 2. Nf3 {[%clk 0:02:51]}  e6 {[%clk 0:03:00]} 3. g3 {[%clk 0:02:46]}  Nc6 {[%clk 0:03:00]} 4. Bg2 {[%clk 0:02:46]}  Nf6 {[%clk 0:03:01]} 5. Qe2 {[%clk 0:02:44]}  e5 {[%clk 0:03:01]} 6. O-O {[%clk 0:02:39]}  Be7 {[%clk 0:03:02]} 7. c3 {[%clk 0:02:39]}  O-O {[%clk 0:03:01]} 8. Rd1 {[%clk 0:02:40]}  d5 {[%clk 0:02:58]} 9. exd5 {[%clk 0:02:32]}  Qxd5 {[%clk 0:02:59]} 10. Nd4 {[%clk 0:02:28]}  Nxd4 {[%clk 0:02:57]} 11. cxd4 {[%clk 0:02:28]}  Qxd4 {[%clk 0:02:56]} 12. Nc3 {[%clk 0:02:27]}  Bg4 {[%clk 0:02:55]} 13. Bf3 {[%clk 0:02:26]}  Bxf3 {[%clk 0:02:51]} 14. Qxf3 {[%clk 0:02:27]}  e4 {[%clk 0:02:52]} 15. Qe3 {[%clk 0:02:18]}  Qxe3 {[%clk 0:01:58]} 16. fxe3 {[%clk 0:02:18]}  c4 {[%clk 0:01:49]} 17. b3 {[%clk 0:02:17]}  cxb3 {[%clk 0:01:43]} 18. axb3 {[%clk 0:02:18]}  Rfd8 {[%clk 0:01:42]} 19. Ra4 {[%clk 0:02:16]}  Bc5 {[%clk 0:01:34]} 20. Kf1 {[%clk 0:02:07]}  Re8 {[%clk 0:01:24]} 21. Ke2 {[%clk 0:02:03]}  a6 {[%clk 0:01:08]} 22. Rc4 {[%clk 0:02:03]}  Rac8 {[%clk 0:01:04]} 23. Ra4 {[%clk 0:01:58]}  Re6 {[%clk 0:01:03]} 24. Bb2 {[%clk 0:01:58]}  Rce8 {[%clk 0:00:58]} 25. Rf1 {[%clk 0:01:54]}  Rb6 {[%clk 0:00:55]} 26. Rc4 {[%clk 0:01:39]}  Rxb3 {[%clk 0:00:45]} 27. Na4 {[%clk 0:01:40]}  Be7 {[%clk 0:00:31]} 28. Bxf6 {[%clk 0:01:34]}  Bxf6 {[%clk 0:00:32]} 29. Nc5 {[%clk 0:01:34]}  Rc8 {[%clk 0:00:28]} 30. Rxe4 {[%clk 0:01:32]}  Rb5 {[%clk 0:00:17]} 31. Nd7 {[%clk 0:01:32]}  Bb2 {[%clk 0:00:12]} 32. Re7 {[%clk 0:01:32]}  f6 {[%clk 0:00:12]} 33. Rf4 {[%clk 0:01:29]}  a5 {[%clk 0:00:10]} 34. Rg4 {[%clk 0:01:28]}  f5 {[%clk 0:00:10]} 35. Ra4 {[%clk 0:01:22]}  Rd8 {[%clk 0:00:04]} 36. d4 {[%clk 0:01:19]}  Bc3 {[%clk 0:00:04]} 37. Nc5 {[%clk 0:01:18]}  Bb4 {[%clk 0:00:02]} 38. Rxb7 {[%clk 0:01:17]}  Rxb7 {[%clk 0:00:02]} 39. Nxb7 {[%clk 0:01:18]}  Rb8 {[%clk 0:00:03]} 40. Nxa5 {[%clk 0:01:17]}  Bxa5 {[%clk 0:00:03]} 41. Rxa5 {[%clk 0:01:18]}  Rb2+ {[%clk 0:00:04]} 42. Kf3 {[%clk 0:01:18]}  Rxh2 {[%clk 0:00:03]} 43. Rxf5 {[%clk 0:01:18]} 1-0


[Site "https://www.chess.com"]

[Event "Titled Tuesday Blitz August 08 Early 2023"]
[White "Golubev, Mikhail"]
[Black "Vyatkin, Dmitry"]
[WhiteFideId "14100983"]
[BlackFideId "4171900"]
[WhiteElo "2669"]
[BlackElo "2513"]
[Result "0-1"]
[Round "4"]
[TimeControl "180+1"]
[Date "2023.08.08"]
[WhiteClock "0:00:00"]
[BlackClock "0:00:02"]
[Board "96"]

1. e4 {[%clk 0:02:57]}  e6 {[%clk 0:02:59]} 2. d4 {[%clk 0:02:56]}  d5 {[%clk 0:02:59]} 3. Bd3 {[%clk 0:02:56]}  dxe4 {[%clk 0:02:46]} 4. Bxe4 {[%clk 0:02:57]}  c5 {[%clk 0:02:46]} 5. Ne2 {[%clk 0:02:49]}  Nf6 {[%clk 0:02:43]} 6. Bf3 {[%clk 0:02:47]}  cxd4 {[%clk 0:02:43]} 7. Qxd4 {[%clk 0:02:43]}  Qxd4 {[%clk 0:02:40]} 8. Nxd4 {[%clk 0:02:43]}  a6 {[%clk 0:02:39]} 9. O-O {[%clk 0:02:37]}  Nbd7 {[%clk 0:02:29]} 10. Re1 {[%clk 0:02:32]}  Bc5 {[%clk 0:02:21]} 11. Nb3 {[%clk 0:02:24]}  Bd6 {[%clk 0:02:21]} 12. Nc3 {[%clk 0:01:44]}  Ne5 {[%clk 0:02:19]} 13. Be2 {[%clk 0:01:42]}  Bd7 {[%clk 0:02:14]} 14. Bf4 {[%clk 0:01:37]}  Ke7 {[%clk 0:01:39]} 15. Rad1 {[%clk 0:01:34]}  Nc4 {[%clk 0:01:38]} 16. Bc1 {[%clk 0:01:16]}  Rac8 {[%clk 0:01:33]} 17. Rd4 {[%clk 0:01:08]}  b5 {[%clk 0:01:27]} 18. Bf3 {[%clk 0:00:49]}  Rc7 {[%clk 0:01:14]} 19. Bg5 {[%clk 0:00:42]}  Be5 {[%clk 0:00:58]} 20. Rxc4 {[%clk 0:00:19]}  bxc4 {[%clk 0:00:57]} 21. Rxe5 {[%clk 0:00:20]}  cxb3 {[%clk 0:00:56]} 22. axb3 {[%clk 0:00:20]}  Bc6 {[%clk 0:00:49]} 23. Rc5 {[%clk 0:00:17]}  Rhc8 {[%clk 0:00:48]} 24. Bf4 {[%clk 0:00:15]}  Nd7 {[%clk 0:00:42]} 25. Rc4 {[%clk 0:00:12]}  e5 {[%clk 0:00:39]} 26. Be3 {[%clk 0:00:09]}  Bxf3 {[%clk 0:00:38]} 27. Rxc7 {[%clk 0:00:07]}  Rxc7 {[%clk 0:00:38]} 28. gxf3 {[%clk 0:00:08]}  Ke6 {[%clk 0:00:36]} 29. Kf1 {[%clk 0:00:08]}  f5 {[%clk 0:00:29]} 30. f4 {[%clk 0:00:08]}  g5 {[%clk 0:00:24]} 31. fxe5 {[%clk 0:00:07]}  f4 {[%clk 0:00:19]} 32. Bd4 {[%clk 0:00:07]}  Nxe5 {[%clk 0:00:20]} 33. Ke2 {[%clk 0:00:07]}  Kf5 {[%clk 0:00:19]} 34. Bb6 {[%clk 0:00:06]}  Rc6 {[%clk 0:00:17]} 35. Bd8 {[%clk 0:00:05]}  Rh6 {[%clk 0:00:14]} 36. Nd5 {[%clk 0:00:04]}  Rxh2 {[%clk 0:00:14]} 37. c4 {[%clk 0:00:04]}  Ng4 {[%clk 0:00:13]} 38. Bb6 {[%clk 0:00:03]}  Rh3 {[%clk 0:00:06]} 39. Bd4 {[%clk 0:00:01]}  Rxb3 {[%clk 0:00:04]} 40. c5 {[%clk 0:00:00]}  Ke4 {[%clk 0:00:02]} 0-1


[Site "https://www.chess.com"]

[Event "Titled Tuesday Blitz August 08 Early 2023"]
[White "Mattheii"]
[Black "Seemann, Jakub"]
[BlackFideId "21874697"]
[WhiteElo "2513"]
[BlackElo "2669"]
[Result "0-1"]
[Round "4"]
[TimeControl "180+1"]
[Date "2023.08.08"]
[WhiteClock "0:00:07"]
[BlackClock "0:00:28"]
[Board "97"]

1. d4 {[%clk 0:02:54]}  Nf6 {[%clk 0:02:58]} 2. c4 {[%clk 0:02:53]}  e6 {[%clk 0:02:58]} 3. Nc3 {[%clk 0:02:54]}  c5 {[%clk 0:02:57]} 4. d5 {[%clk 0:02:53]}  exd5 {[%clk 0:02:58]} 5. cxd5 {[%clk 0:02:53]}  d6 {[%clk 0:02:57]} 6. e4 {[%clk 0:02:54]}  g6 {[%clk 0:02:57]} 7. Be2 {[%clk 0:02:54]}  Bg7 {[%clk 0:02:57]} 8. Nf3 {[%clk 0:02:54]}  O-O {[%clk 0:02:58]} 9. O-O {[%clk 0:02:54]}  Re8 {[%clk 0:02:57]} 10. Nd2 {[%clk 0:02:54]}  Na6 {[%clk 0:02:57]} 11. f3 {[%clk 0:02:44]}  Nc7 {[%clk 0:02:56]} 12. a4 {[%clk 0:02:44]}  a6 {[%clk 0:02:48]} 13. Nc4 {[%clk 0:02:41]}  Rb8 {[%clk 0:02:33]} 14. Bf4 {[%clk 0:02:32]}  Bf8 {[%clk 0:02:33]} 15. a5 {[%clk 0:02:11]}  Nh5 {[%clk 0:02:30]} 16. Be3 {[%clk 0:02:07]}  Nb5 {[%clk 0:02:23]} 17. Qd2 {[%clk 0:01:45]}  Nd4 {[%clk 0:02:19]} 18. Bxd4 {[%clk 0:01:38]}  cxd4 {[%clk 0:02:18]} 19. Qxd4 {[%clk 0:01:39]}  Qg5 {[%clk 0:02:17]} 20. Qd2 {[%clk 0:01:21]}  Qh4 {[%clk 0:02:13]} 21. Qe1 {[%clk 0:00:49]}  Qf6 {[%clk 0:02:09]} 22. Qf2 {[%clk 0:00:44]}  Nf4 {[%clk 0:01:51]} 23. Kh1 {[%clk 0:00:34]}  h5 {[%clk 0:01:46]} 24. g3 {[%clk 0:00:32]}  Nh3 {[%clk 0:01:46]} 25. Qe3 {[%clk 0:00:31]}  h4 {[%clk 0:01:45]} 26. Nb6 {[%clk 0:00:23]}  Bg7 {[%clk 0:01:31]} 27. Kg2 {[%clk 0:00:21]}  Ng5 {[%clk 0:01:10]} 28. Nxc8 {[%clk 0:00:18]}  Rbxc8 {[%clk 0:01:10]} 29. Rac1 {[%clk 0:00:19]}  h3+ {[%clk 0:01:07]} 30. Kg1 {[%clk 0:00:19]}  Qd4 {[%clk 0:01:04]} 31. Qxd4 {[%clk 0:00:13]}  Bxd4+ {[%clk 0:01:05]} 32. Kh1 {[%clk 0:00:14]}  f5 {[%clk 0:01:06]} 33. Bd3 {[%clk 0:00:10]}  Bxc3 {[%clk 0:00:53]} 34. Rxc3 {[%clk 0:00:10]}  Rxc3 {[%clk 0:00:53]} 35. bxc3 {[%clk 0:00:11]}  fxe4 {[%clk 0:00:53]} 36. fxe4 {[%clk 0:00:12]}  Nxe4 {[%clk 0:00:52]} 37. Kg1 {[%clk 0:00:10]}  Nxc3 {[%clk 0:00:51]} 38. Bxg6 {[%clk 0:00:10]}  Re2 {[%clk 0:00:51]} 39. Bf7+ {[%clk 0:00:11]}  Kg7 {[%clk 0:00:50]} 40. Be6 {[%clk 0:00:11]}  Rg2+ {[%clk 0:00:49]} 41. Kh1 {[%clk 0:00:11]}  Ne4 {[%clk 0:00:43]} 42. Bxh3 {[%clk 0:00:12]}  Ra2 {[%clk 0:00:44]} 43. Be6 {[%clk 0:00:09]}  Nf6 {[%clk 0:00:35]} 44. Rb1 {[%clk 0:00:07]}  Rxa5 {[%clk 0:00:35]} 45. Rxb7+ {[%clk 0:00:08]}  Kg6 {[%clk 0:00:35]} 46. Rb2 {[%clk 0:00:08]}  Nxd5 {[%clk 0:00:32]} 47. Bxd5 {[%clk 0:00:08]}  Rxd5 {[%clk 0:00:33]} 48. Kg2 {[%clk 0:00:07]}  Kf5 {[%clk 0:00:31]} 49. Ra2 {[%clk 0:00:06]}  a5 {[%clk 0:00:31]} 50. Ra4 {[%clk 0:00:07]}  Rb5 {[%clk 0:00:31]} 51. Kf3 {[%clk 0:00:07]}  Ke5 {[%clk 0:00:29]} 52. h4 {[%clk 0:00:07]}  Rb3+ {[%clk 0:00:28]} 53. Kg4 {[%clk 0:00:07]}  Rb4+ {[%clk 0:00:28]} 54. Rxb4 {[%clk 0:00:07]}  axb4 {[%clk 0:00:29]} 55. h5 {[%clk 0:00:07]}  b3 {[%clk 0:00:28]} 0-1


[Site "https://www.chess.com"]

[Event "Titled Tuesday Blitz August 08 Early 2023"]
[White "Hua, Lefong"]
[Black "Tokman, Ariel"]
[WhiteFideId "2602253"]
[BlackFideId "117420"]
[WhiteElo "2662"]
[BlackElo "2499"]
[Result "1-0"]
[Round "4"]
[TimeControl "180+1"]
[Date "2023.08.08"]
[WhiteClock "0:00:22"]
[BlackClock "0:00:00"]
[Board "100"]

1. d4 {[%clk 0:03:00]}  d5 {[%clk 0:02:58]} 2. c4 {[%clk 0:03:01]}  c6 {[%clk 0:02:59]} 3. Nf3 {[%clk 0:03:01]}  Nf6 {[%clk 0:02:59]} 4. Nc3 {[%clk 0:03:02]}  a6 {[%clk 0:02:59]} 5. c5 {[%clk 0:03:01]}  g6 {[%clk 0:02:58]} 6. Bf4 {[%clk 0:03:00]}  Bg7 {[%clk 0:02:59]} 7. h3 {[%clk 0:03:01]}  O-O {[%clk 0:02:59]} 8. e3 {[%clk 0:03:01]}  Nbd7 {[%clk 0:02:50]} 9. b4 {[%clk 0:02:47]}  Ne4 {[%clk 0:02:49]} 10. Qc2 {[%clk 0:02:42]}  Nxc3 {[%clk 0:02:48]} 11. Qxc3 {[%clk 0:02:43]}  a5 {[%clk 0:02:47]} 12. b5 {[%clk 0:02:35]}  Re8 {[%clk 0:02:40]} 13. Be2 {[%clk 0:02:33]}  e5 {[%clk 0:02:18]} 14. Nxe5 {[%clk 0:02:23]}  Nxe5 {[%clk 0:02:16]} 15. Bxe5 {[%clk 0:02:23]}  Bxe5 {[%clk 0:02:11]} 16. dxe5 {[%clk 0:02:24]}  Qe7 {[%clk 0:02:10]} 17. f4 {[%clk 0:02:19]}  f6 {[%clk 0:02:08]} 18. exf6 {[%clk 0:02:08]}  Qxe3 {[%clk 0:02:08]} 19. Qxe3 {[%clk 0:02:08]}  Rxe3 {[%clk 0:02:09]} 20. Kd2 {[%clk 0:02:00]}  Re4 {[%clk 0:02:06]} 21. g3 {[%clk 0:01:56]}  Kf7 {[%clk 0:02:01]} 22. Bd3 {[%clk 0:01:50]}  Ra4 {[%clk 0:01:46]} 23. Rhe1 {[%clk 0:01:31]}  Kxf6 {[%clk 0:01:44]} 24. Re8 {[%clk 0:01:28]}  Ra3 {[%clk 0:01:30]} 25. Rae1 {[%clk 0:01:24]}  Rxa2+ {[%clk 0:01:20]} 26. Kc3 {[%clk 0:01:19]}  a4 {[%clk 0:00:59]} 27. Rf8+ {[%clk 0:01:11]}  Kg7 {[%clk 0:00:57]} 28. Ree8 {[%clk 0:01:11]}  Ra3+ {[%clk 0:00:39]} 29. Kd4 {[%clk 0:01:04]}  Rxd3+ {[%clk 0:00:38]} 30. Kxd3 {[%clk 0:01:04]}  Bf5+ {[%clk 0:00:37]} 31. Kc3 {[%clk 0:00:59]}  Ra5 {[%clk 0:00:36]} 32. bxc6 {[%clk 0:00:52]}  Rxc5+ {[%clk 0:00:32]} 33. Kd4 {[%clk 0:00:51]}  Rxc6 {[%clk 0:00:31]} 34. g4 {[%clk 0:00:49]}  Be6 {[%clk 0:00:26]} 35. f5 {[%clk 0:00:43]}  gxf5 {[%clk 0:00:24]} 36. gxf5 {[%clk 0:00:43]}  Rc4+ {[%clk 0:00:19]} 37. Ke5 {[%clk 0:00:34]}  Re4+ {[%clk 0:00:18]} 38. Kd6 {[%clk 0:00:35]}  Bf7 {[%clk 0:00:18]} 39. Ra8 {[%clk 0:00:27]}  a3 {[%clk 0:00:12]} 40. Rfb8 {[%clk 0:00:26]}  a2 {[%clk 0:00:10]} 41. Rxa2 {[%clk 0:00:24]}  d4 {[%clk 0:00:07]} 42. Ra7 {[%clk 0:00:24]}  Rf4 {[%clk 0:00:07]} 43. Ke5 {[%clk 0:00:22]}  Rf1 {[%clk 0:00:06]} 44. Rbxb7 {[%clk 0:00:22]}  Re1+ {[%clk 0:00:03]} 45. Kxd4 {[%clk 0:00:23]}  Rd1+ {[%clk 0:00:03]} 46. Ke3 {[%clk 0:00:22]}  Re1+ {[%clk 0:00:00]} 47. Kf2 {[%clk 0:00:22]} 1-0


[Site "https://www.chess.com"]

[Event "Titled Tuesday Blitz August 08 Early 2023"]
[White "Mmukka"]
[Black "Tarhan, Adar"]
[BlackFideId "34544712"]
[WhiteElo "2472"]
[BlackElo "2646"]
[Result "1-0"]
[Round "4"]
[TimeControl "180+1"]
[Date "2023.08.08"]
[WhiteClock "0:00:13"]
[BlackClock "0:00:00"]
[Board "104"]

1. e4 {[%clk 0:03:00]}  c6 {[%clk 0:03:00]} 2. d4 {[%clk 0:03:00]}  d5 {[%clk 0:03:01]} 3. exd5 {[%clk 0:03:00]}  cxd5 {[%clk 0:03:01]} 4. Bd3 {[%clk 0:03:00]}  Nc6 {[%clk 0:03:01]} 5. c3 {[%clk 0:03:00]}  Nf6 {[%clk 0:03:01]} 6. h3 {[%clk 0:03:01]}  g6 {[%clk 0:03:01]} 7. Bf4 {[%clk 0:03:00]}  Bf5 {[%clk 0:03:01]} 8. Be2 {[%clk 0:03:00]}  Qb6 {[%clk 0:02:54]} 9. Qb3 {[%clk 0:02:59]}  Bg7 {[%clk 0:02:37]} 10. Nf3 {[%clk 0:02:57]}  O-O {[%clk 0:02:35]} 11. Nbd2 {[%clk 0:02:56]}  Rfc8 {[%clk 0:02:29]} 12. O-O {[%clk 0:02:53]}  Ne4 {[%clk 0:02:18]} 13. Rfe1 {[%clk 0:02:36]}  Nxd2 {[%clk 0:02:14]} 14. Nxd2 {[%clk 0:02:36]}  Na5 {[%clk 0:01:34]} 15. Qxd5 {[%clk 0:02:17]}  a6 {[%clk 0:01:35]} 16. b4 {[%clk 0:02:11]}  Nc6 {[%clk 0:01:28]} 17. Nb3 {[%clk 0:01:48]}  Be6 {[%clk 0:01:14]} 18. Qf3 {[%clk 0:01:47]}  Bxb3 {[%clk 0:00:45]} 19. axb3 {[%clk 0:01:46]}  e6 {[%clk 0:00:45]} 20. Qg3 {[%clk 0:01:41]}  Ne7 {[%clk 0:00:42]} 21. Bc4 {[%clk 0:01:34]}  Qc6 {[%clk 0:00:37]} 22. Qg5 {[%clk 0:01:08]}  Nf5 {[%clk 0:00:32]} 23. Rac1 {[%clk 0:01:04]}  h5 {[%clk 0:00:21]} 24. Bxe6 {[%clk 0:00:33]}  fxe6 {[%clk 0:00:21]} 25. Qxg6 {[%clk 0:00:33]}  Re8 {[%clk 0:00:16]} 26. Qxh5 {[%clk 0:00:31]}  Rad8 {[%clk 0:00:13]} 27. Be5 {[%clk 0:00:30]}  Rd5 {[%clk 0:00:09]} 28. Bxg7 {[%clk 0:00:28]}  Nxg7 {[%clk 0:00:10]} 29. Qg6 {[%clk 0:00:26]}  Rd7 {[%clk 0:00:08]} 30. Re5 {[%clk 0:00:25]}  Rxd4 {[%clk 0:00:08]} 31. Rg5 {[%clk 0:00:23]}  Re7 {[%clk 0:00:05]} 32. Re1 {[%clk 0:00:19]}  Qxc3 {[%clk 0:00:04]} 33. Re3 {[%clk 0:00:18]}  Rd1+ {[%clk 0:00:05]} 34. Kh2 {[%clk 0:00:18]}  Qc7+ {[%clk 0:00:05]} 35. Reg3 {[%clk 0:00:17]}  Rd2 {[%clk 0:00:06]} 36. Qf6 {[%clk 0:00:15]}  Qd7 {[%clk 0:00:00]} 37. h4 {[%clk 0:00:13]} 1-0


[Site "https://www.chess.com"]

[Event "Titled Tuesday Blitz August 08 Early 2023"]
[White "benny_aizenberg"]
[Black "Reprintsev, Alexander"]
[BlackFideId "14100541"]
[WhiteElo "2641"]
[BlackElo "2472"]
[Result "1-0"]
[Round "4"]
[TimeControl "180+1"]
[Date "2023.08.08"]
[WhiteClock "0:01:36"]
[BlackClock "0:01:02"]
[Board "105"]

1. f4 {[%clk 0:03:00]}  e5 {[%clk 0:02:59]} 2. fxe5 {[%clk 0:03:00]}  d6 {[%clk 0:02:59]} 3. Nf3 {[%clk 0:03:00]}  Nc6 {[%clk 0:02:58]} 4. d4 {[%clk 0:02:53]}  dxe5 {[%clk 0:02:57]} 5. d5 {[%clk 0:02:54]}  e4 {[%clk 0:02:56]} 6. dxc6 {[%clk 0:02:54]}  Qxd1+ {[%clk 0:02:54]} 7. Kxd1 {[%clk 0:02:54]}  exf3 {[%clk 0:02:54]} 8. exf3 {[%clk 0:02:49]}  bxc6 {[%clk 0:02:54]} 9. Bd3 {[%clk 0:02:45]}  Be6 {[%clk 0:02:51]} 10. c3 {[%clk 0:02:44]}  O-O-O {[%clk 0:02:50]} 11. Kc2 {[%clk 0:02:45]}  Ne7 {[%clk 0:02:49]} 12. Be3 {[%clk 0:02:43]}  Kb7 {[%clk 0:02:48]} 13. Nd2 {[%clk 0:02:28]}  Nf5 {[%clk 0:02:45]} 14. Bf2 {[%clk 0:02:24]}  Bd6 {[%clk 0:02:43]} 15. Nb3 {[%clk 0:02:21]}  h5 {[%clk 0:02:30]} 16. Na5+ {[%clk 0:02:20]}  Ka8 {[%clk 0:02:25]} 17. Nxc6 {[%clk 0:02:18]}  Rde8 {[%clk 0:02:18]} 18. Nxa7 {[%clk 0:02:15]}  Bd7 {[%clk 0:02:13]} 19. Nb5 {[%clk 0:02:11]}  Bf4 {[%clk 0:01:57]} 20. g3 {[%clk 0:02:00]}  c6 {[%clk 0:01:36]} 21. gxf4 {[%clk 0:01:54]}  cxb5 {[%clk 0:01:35]} 22. Rhe1 {[%clk 0:01:48]}  Kb7 {[%clk 0:01:30]} 23. Re5 {[%clk 0:01:42]}  Rxe5 {[%clk 0:01:28]} 24. fxe5 {[%clk 0:01:43]}  g5 {[%clk 0:01:25]} 25. Be4+ {[%clk 0:01:41]}  Kc7 {[%clk 0:01:19]} 26. Rd1 {[%clk 0:01:41]}  g4 {[%clk 0:01:14]} 27. Rxd7+ {[%clk 0:01:41]}  Kxd7 {[%clk 0:01:14]} 28. Bxf5+ {[%clk 0:01:41]}  Ke7 {[%clk 0:01:14]} 29. Bh4+ {[%clk 0:01:35]}  Ke8 {[%clk 0:01:11]} 30. fxg4 {[%clk 0:01:35]}  hxg4 {[%clk 0:01:02]} 31. Bg3 {[%clk 0:01:36]} 1-0


[Site "https://www.chess.com"]

[Event "Titled Tuesday Blitz August 08 Early 2023"]
[White "Korkmaz, Necmettin"]
[Black "Saya, Ethan"]
[WhiteFideId "6303285"]
[BlackFideId "26095181"]
[WhiteElo "2465"]
[BlackElo "2637"]
[Result "1/2-1/2"]
[Round "4"]
[TimeControl "180+1"]
[Date "2023.08.08"]
[WhiteClock "0:00:57"]
[BlackClock "0:00:04"]
[Board "107"]

1. e4 {[%clk 0:03:00]}  e6 {[%clk 0:02:58]} 2. d4 {[%clk 0:02:59]}  d5 {[%clk 0:02:58]} 3. e5 {[%clk 0:02:59]}  c5 {[%clk 0:02:55]} 4. c3 {[%clk 0:02:59]}  Nc6 {[%clk 0:02:55]} 5. Nf3 {[%clk 0:02:59]}  Bd7 {[%clk 0:02:56]} 6. Bd3 {[%clk 0:02:59]}  cxd4 {[%clk 0:02:53]} 7. cxd4 {[%clk 0:02:58]}  Qb6 {[%clk 0:02:54]} 8. O-O {[%clk 0:02:56]}  Nxd4 {[%clk 0:02:54]} 9. Nxd4 {[%clk 0:02:56]}  Qxd4 {[%clk 0:02:54]} 10. Nc3 {[%clk 0:02:56]}  a6 {[%clk 0:02:50]} 11. Qe2 {[%clk 0:02:54]}  Rc8 {[%clk 0:02:45]} 12. Kh1 {[%clk 0:02:52]}  Bc5 {[%clk 0:02:41]} 13. f4 {[%clk 0:02:49]}  Ne7 {[%clk 0:02:31]} 14. Bd2 {[%clk 0:02:46]}  O-O {[%clk 0:02:22]} 15. Rf3 {[%clk 0:02:42]}  Nf5 {[%clk 0:01:39]} 16. a3 {[%clk 0:02:35]}  Nh4 {[%clk 0:01:09]} 17. Be3 {[%clk 0:02:22]}  Nxf3 {[%clk 0:01:09]} 18. Bxd4 {[%clk 0:02:21]}  Nxd4 {[%clk 0:01:10]} 19. Qh5 {[%clk 0:02:18]}  g6 {[%clk 0:01:09]} 20. Qh6 {[%clk 0:02:18]}  Rfd8 {[%clk 0:00:48]} 21. Rf1 {[%clk 0:02:17]}  Bf8 {[%clk 0:00:48]} 22. Qh4 {[%clk 0:02:14]}  Nb5 {[%clk 0:00:37]} 23. Ne2 {[%clk 0:01:58]}  Bg7 {[%clk 0:00:32]} 24. Qg3 {[%clk 0:01:50]}  Rc7 {[%clk 0:00:30]} 25. h4 {[%clk 0:01:50]}  Rdc8 {[%clk 0:00:27]} 26. h5 {[%clk 0:01:50]}  Na7 {[%clk 0:00:23]} 27. Qg5 {[%clk 0:01:48]}  Bb5 {[%clk 0:00:20]} 28. Rf3 {[%clk 0:01:43]}  Bxd3 {[%clk 0:00:19]} 29. Rxd3 {[%clk 0:01:42]}  Rc2 {[%clk 0:00:20]} 30. Nd4 {[%clk 0:01:41]}  Rxb2 {[%clk 0:00:19]} 31. hxg6 {[%clk 0:01:39]}  hxg6 {[%clk 0:00:19]} 32. Rh3 {[%clk 0:01:39]}  Nb5 {[%clk 0:00:14]} 33. Nf3 {[%clk 0:01:37]}  Nc3 {[%clk 0:00:11]} 34. Qh4 {[%clk 0:01:28]}  Ne4 {[%clk 0:00:11]} 35. Qh7+ {[%clk 0:01:22]}  Kf8 {[%clk 0:00:12]} 36. Rh4 {[%clk 0:01:16]}  Rc1+ {[%clk 0:00:11]} 37. Kh2 {[%clk 0:01:17]}  Rbb1 {[%clk 0:00:12]} 38. Kh3 {[%clk 0:01:08]}  Nf2+ {[%clk 0:00:12]} 39. Kg3 {[%clk 0:01:08]}  Ne4+ {[%clk 0:00:11]} 40. Kg4 {[%clk 0:01:09]}  Rc2 {[%clk 0:00:11]} 41. g3 {[%clk 0:01:08]}  Rg2 {[%clk 0:00:10]} 42. Rh3 {[%clk 0:01:08]}  Nf2+ {[%clk 0:00:08]} 43. Kg5 {[%clk 0:01:07]}  Nxh3+ {[%clk 0:00:08]} 44. Qxh3 {[%clk 0:01:07]}  Rf2 {[%clk 0:00:07]} 45. Nd4 {[%clk 0:01:04]}  Rd1 {[%clk 0:00:06]} 46. Nxe6+ {[%clk 0:01:04]}  fxe6 {[%clk 0:00:07]} 47. Qxe6 {[%clk 0:01:05]}  Rg2 {[%clk 0:00:05]} 48. g4 {[%clk 0:01:04]}  Rdg1 {[%clk 0:00:04]} 49. Qc8+ {[%clk 0:01:00]}  Ke7 {[%clk 0:00:05]} 50. Qxb7+ {[%clk 0:00:59]}  Kf8 {[%clk 0:00:04]} 51. Qc8+ {[%clk 0:00:57]}  Ke7 {[%clk 0:00:04]} 52. Qc7+ {[%clk 0:00:57]}  Kf8 {[%clk 0:00:04]} 53. Qd8+ {[%clk 0:00:56]}  Kf7 {[%clk 0:00:04]} 54. Qd7+ {[%clk 0:00:56]}  Kf8 {[%clk 0:00:03]} 55. Qd8+ {[%clk 0:00:56]}  Kf7 {[%clk 0:00:04]} 56. Qd7+ {[%clk 0:00:56]}  Kf8 {[%clk 0:00:04]} 57. Qd8+ {[%clk 0:00:57]} 1/2-1/2


[Site "https://www.chess.com"]

[Event "Titled Tuesday Blitz August 08 Early 2023"]
[White "Radzhabov, Rodion"]
[Black "FREDERICKtheMATE"]
[WhiteFideId "884715"]
[WhiteElo "2636"]
[BlackElo "2451"]
[Result "1-0"]
[Round "4"]
[TimeControl "180+1"]
[Date "2023.08.08"]
[WhiteClock "0:00:54"]
[BlackClock "0:00:56"]
[Board "108"]

1. e4 {[%clk 0:03:00]}  c5 {[%clk 0:03:00]} 2. Nf3 {[%clk 0:02:58]}  Nc6 {[%clk 0:03:00]} 3. Bb5 {[%clk 0:02:58]}  g6 {[%clk 0:02:59]} 4. Bxc6 {[%clk 0:02:57]}  dxc6 {[%clk 0:02:59]} 5. d3 {[%clk 0:02:57]}  Bg7 {[%clk 0:02:59]} 6. h3 {[%clk 0:02:57]}  Qc7 {[%clk 0:02:59]} 7. Nc3 {[%clk 0:02:57]}  e5 {[%clk 0:02:59]} 8. Be3 {[%clk 0:02:57]}  b6 {[%clk 0:02:59]} 9. Qd2 {[%clk 0:02:57]}  h6 {[%clk 0:03:00]} 10. O-O {[%clk 0:02:54]}  Ne7 {[%clk 0:02:59]} 11. Nh2 {[%clk 0:02:53]}  Be6 {[%clk 0:02:54]} 12. f4 {[%clk 0:02:52]}  exf4 {[%clk 0:02:53]} 13. Bxf4 {[%clk 0:02:52]}  Be5 {[%clk 0:02:48]} 14. Bxe5 {[%clk 0:02:42]}  Qxe5 {[%clk 0:02:49]} 15. Nf3 {[%clk 0:02:43]}  Qg7 {[%clk 0:02:49]} 16. e5 {[%clk 0:02:35]}  g5 {[%clk 0:02:42]} 17. Ne4 {[%clk 0:02:35]}  O-O-O {[%clk 0:02:35]} 18. a4 {[%clk 0:02:16]}  a5 {[%clk 0:02:34]} 19. Qf2 {[%clk 0:02:05]}  Ng6 {[%clk 0:02:24]} 20. b4 {[%clk 0:01:56]}  axb4 {[%clk 0:02:18]} 21. a5 {[%clk 0:01:56]}  Nxe5 {[%clk 0:02:15]} 22. axb6 {[%clk 0:01:54]}  Nxf3+ {[%clk 0:02:15]} 23. Qxf3 {[%clk 0:01:48]}  Qd4+ {[%clk 0:02:10]} 24. Kh1 {[%clk 0:01:34]}  f5 {[%clk 0:02:09]} 25. Qg3 {[%clk 0:01:10]}  f4 {[%clk 0:01:49]} 26. Qf2 {[%clk 0:01:01]}  Qxf2 {[%clk 0:01:01]} 27. Rxf2 {[%clk 0:00:57]}  Bf5 {[%clk 0:00:56]} 28. Nxc5 {[%clk 0:00:56]}  Rhe8 {[%clk 0:00:56]} 29. Ra8# {[%clk 0:00:54]} 1-0


[Site "https://www.chess.com"]